fUSD/lending_fUSD_20250502
["ID","MTS","AMOUNT","RATE_DAILY","PERIOD"]
[359625827,1746192642176,-1519.18,0.00019775,2]
[359625828,1746192642185,-450.0,0.00019775,2]
[359625829,1746192642195,-450.0,0.00019775,2]
[359625830,1746192642204,-300.0,0.00019775,2]
[359625831,1746192642214,-450.0,0.00019775,2]
[359625832,1746192642223,-450.0,0.00019775,2]
[359625833,1746192642233,-450.0,0.00019775,2]
[359625834,1746192642242,-488.48,0.00019775,2]
[359625835,1746192642251,-450.0,0.00019775,2]
[359625836,1746192642261,-450.0,0.00019775,2]
[359625837,1746192642271,-450.0,0.00019775,2]
[359625838,1746192642280,-450.0,0.00019775,2]
[359625839,1746192642290,-450.0,0.00019775,2]
[359625840,1746192642300,-450.0,0.00019775,2]
[359625841,1746192642309,-450.0,0.00019775,2]
[359625842,1746192642318,-789.92,0.00019775,2]
[359625843,1746192642328,-450.0,0.00019775,2]
[359625844,1746192642337,-738.51,0.00019775,2]
[359625845,1746192642347,-1987.86,0.00019775,2]
[359625846,1746192642357,-238.82591097,0.00019775,2]
[359625847,1746192642366,-725.45,0.00019775,2]
[359625848,1746192642375,-450.56598465,0.00019775,2]
[359625849,1746192642385,-450.0,0.00019775,2]
[359625850,1746192642394,-450.0,0.00019775,2]
[359625851,1746192642403,-1350.61,0.00019775,2]
[359625852,1746192642413,-450.0,0.00019775,2]
[359625853,1746192642422,-450.0,0.00019775,2]
[359625854,1746192642432,-450.0,0.00019775,2]
[359625855,1746192642441,-450.0,0.00019775,2]
[359625856,1746192642450,-450.0,0.00019775,2]
[359625857,1746192642460,-318.76601085,0.00019775,2]
[359625858,1746192642469,-450.0,0.00019775,2]
[359625859,1746192642479,-450.0,0.00019775,2]
[359625860,1746192642488,-685.7,0.00019775,2]
[359625861,1746192642498,-450.0,0.00019775,2]
[359625862,1746192642507,-450.0,0.00019775,2]
[359625863,1746192642517,-450.0,0.00019775,2]
[359625864,1746192642526,-747.04,0.00019775,2]
[359625865,1746192642535,-450.0,0.00019775,2]
[359625866,1746192642544,-761.99,0.00019775,2]
[359625867,1746192642554,-450.0,0.00019775,2]
[359625868,1746192642563,-529.97,0.00019775,2]
[359625869,1746192642573,-450.0,0.00019775,2]
[359625870,1746192642582,-450.0,0.00019775,2]
[359625871,1746192642593,-450.0,0.00019775,2]
[359625872,1746192642602,-504.3,0.00019775,2]
[359625873,1746192642612,-450.0,0.00019775,2]
[359625874,1746192642622,-832.44,0.00019775,2]
[359625875,1746192642631,-547.68083013,0.00019775,2]
[359625877,1746192642641,-450.0,0.00019775,2]
[359625880,1746192642650,-804.46,0.00019775,2]
[359625882,1746192642660,-874.04,0.00019775,2]
[359625885,1746192642670,-460.35808729,0.00019775,2]
[359625888,1746192642679,-450.0,0.00019775,2]
[359625890,1746192642689,-450.0,0.00019775,2]
[359625892,1746192642698,-450.0,0.00019775,2]
[359625893,1746192642708,-2344.03,0.00019775,2]
[359625894,1746192642717,-450.0,0.00019775,2]
[359625895,1746192642727,-450.0,0.00019775,2]
[359625896,1746192642736,-450.0,0.00019775,2]
[359625897,1746192642746,-450.0,0.00019775,2]
[359625898,1746192642755,-450.0,0.00019775,2]
[359625899,1746192642764,-516.74135919,0.00019775,2]
[359625900,1746192642774,-942.34,0.00019775,2]
[359625901,1746192642783,-450.0,0.00019775,2]
[359625902,1746192642792,-738.65,0.00019775,2]
[359625903,1746192642802,-450.0,0.00019775,2]
[359625904,1746192642814,-564.62,0.00019775,2]
[359625905,1746192642823,-450.0,0.00019775,2]
[359625906,1746192642832,-450.0,0.00019775,2]
[359625907,1746192642842,-450.0,0.00019775,2]
[359625908,1746192642851,-450.0,0.00019775,2]
[359625909,1746192642861,-954.54,0.00019775,2]
[359625910,1746192642870,-450.0,0.00019775,2]
[359625911,1746192642882,-941.46,0.00019775,2]
[359625912,1746192642892,-450.0,0.00019775,2]
[359625913,1746192642902,-1045.68,0.00019775,2]
[359625914,1746192642911,-450.0,0.00019775,2]
[359625915,1746192642920,-450.0,0.00019775,2]
[359625916,1746192642930,-450.0,0.00019775,2]
[359625917,1746192642940,-450.0,0.00019775,2]
[359625918,1746192642949,-857.7,0.00019775,2]
[359625919,1746192642959,-450.0,0.00019775,2]
[359625920,1746192642968,-548.35,0.00019775,2]
[359625921,1746192642977,-591.31,0.00019775,2]
[359625922,1746192642986,-450.0,0.00019775,2]
[359625923,1746192642996,-450.0,0.00019775,2]
[359625924,1746192643005,-450.0,0.00019775,2]
[359625925,1746192643014,-450.0,0.00019775,2]
[359625926,1746192643023,-1420.49,0.00019775,2]
[359625927,1746192643033,-450.0,0.00019775,2]
[359625928,1746192643042,-450.0,0.00019775,2]
[359625929,1746192643051,-450.0,0.00019775,2]
[359625930,1746192643060,-450.0,0.00019775,2]
[359625931,1746192643069,-450.0,0.00019775,2]
[359625932,1746192643078,-1096.81,0.00019775,2]
[359625933,1746192643087,-504.49,0.00019775,2]
[359625934,1746192643098,-757.22,0.00019775,2]
[359625935,1746192643107,-450.0,0.00019775,2]
[359625937,1746192643116,-450.0,0.00019775,2]
[359625939,1746192643125,-450.0,0.00019775,2]
[359625940,1746192643134,-450.0,0.00019775,2]
[359625942,1746192643143,-478.03787714,0.00019775,2]
[359625944,1746192643152,-450.0,0.00019775,2]
[359625945,1746192643161,-450.0,0.00019775,2]
[359625947,1746192643171,-450.0,0.00019775,2]
[359625949,1746192643180,-450.0,0.00019775,2]
[359625951,1746192643189,-450.0,0.00019775,2]
[359625952,1746192643198,-450.0,0.00019775,2]
[359625954,1746192643208,-450.0,0.00019775,2]
[359625956,1746192643217,-450.0,0.00019775,2]
[359625958,1746192643227,-450.0,0.00019775,2]
[359625960,1746192643236,-1500.42,0.00019775,2]
[359625961,1746192643246,-608.52,0.00019775,2]
[359625963,1746192643255,-1471.93,0.00019775,2]
[359625965,1746192643264,-662.74,0.00019775,2]
[359625967,1746192643273,-450.0,0.00019775,2]
[359625968,1746192643282,-450.0,0.00019775,2]
[359625970,1746192643292,-696.75,0.00019775,2]
[359625972,1746192643301,-639.9,0.00019775,2]
[359625974,1746192643311,-450.0,0.00019775,2]
[359625976,1746192643320,-300.0,0.00019775,2]
[359625978,1746192643329,-450.0,0.00019775,2]
[359625980,1746192643338,-1879.31,0.00019775,2]
[359625981,1746192643348,-450.0,0.00019775,2]
[359625983,1746192643358,-450.0,0.00019775,2]
[359625985,1746192643367,-678.71,0.00019775,2]
[359625987,1746192643377,-450.0,0.00019775,2]
[359625989,1746192643387,-769.08,0.00019775,2]
[359625990,1746192643396,-450.0,0.00019775,2]
[359625991,1746192643406,-450.0,0.00019775,2]
[359625992,1746192643415,-450.0,0.00019775,2]
[359625993,1746192643425,-450.0,0.00019775,2]
[359625994,1746192643434,-591.61,0.00019775,2]
[359625995,1746192643444,-450.0,0.00019775,2]
[359625996,1746192643454,-450.0,0.00019775,2]
[359625997,1746192643463,-1149.56,0.00019775,2]
[359625998,1746192643473,-450.0,0.00019775,2]
[359625999,1746192643482,-450.0,0.00019775,2]
[359626000,1746192643492,-842.86,0.00019775,2]
[359626001,1746192643502,-461.56,0.00019775,2]
[359626002,1746192643511,-224.84445446,0.00019775,2]
[359626003,1746192643521,-450.0,0.00019775,2]
[359626004,1746192643531,-450.0,0.00019775,2]
[359626005,1746192643542,-723.34356508,0.00019776,2]
[359626006,1746192643551,-5406.71390271,0.00019789,2]
[359626007,1746192643561,-167.13,0.00019793,2]
[359626008,1746192643571,-1719.2617867,0.00019799,2]
[359626009,1746192643581,-1114.89644342,0.00019799,2]
[359626010,1746192643590,-5406.71390271,0.00019801,2]
[359626011,1746192643601,-1114.89644342,0.0001981,2]
[359626012,1746192643610,-5406.71390271,0.00019814,2]
[359626013,1746192643620,-1114.89644342,0.00019821,2]
[359626014,1746192643629,-5406.71390271,0.00019826,2]
[359626015,1746192643639,-1114.89644342,0.00019833,2]
[359626016,1746192643649,-5406.71390271,0.00019838,2]
[359626017,1746192643659,-1114.89644342,0.00019844,2]
[359626018,1746192643669,-5406.71390271,0.00019851,2]
[359626019,1746192643679,-1114.89644342,0.00019855,2]
[359626020,1746192643688,-5406.71390271,0.00019863,2]
[359626021,1746192643698,-164.103,0.00019865,2]
[359626022,1746192643707,-1114.89644342,0.00019866,2]
[359626023,1746192643717,-1798.456,0.00019874,2]
[359626024,1746192643727,-5406.71390271,0.00019875,2]
[359626025,1746192643737,-1114.89644342,0.00019878,2]
[359626026,1746192643746,-34360.07165562,0.0001988,2]
[359626027,1746192643756,-5406.71390271,0.00019888,2]
[359626028,1746192643765,-1114.89644342,0.00019889,2]
[359626029,1746192643775,-5800.0,0.00019892,2]
[359626030,1746192643784,-1769.95928716,0.00019899,2]
[359626031,1746192643794,-1769.95928714,0.000199,2]
[359626032,1746192643804,-764.6447,0.000199,2]
[359626033,1746192643815,-192.0523596,0.000199,2]
[359626034,1746192643825,-1114.89644342,0.000199,2]
[359626035,1746192643834,-5800.0,0.000199,2]
[359626036,1746192643843,-1901.12315016,0.000199,3]
[359626037,1746192643854,-5406.71390271,0.000199,2]
[359626038,1746192643863,-1769.95928714,0.000199,2]
[359626039,1746192643873,-26848.30710804,0.000199,2]
[359626040,1746192643884,-189.39229872,0.000199,3]
[359626041,1746192643893,-4109.0387848,0.000199,2]
[359626042,1746192643902,-151.0,0.00019943,2]
[359626043,1746192643912,-1135.0,0.00019944,2]
[359626044,1746192643921,-153.0,0.00019944,2]
[359626045,1746192643930,-6753.0,0.00019944,2]
[359626046,1746192643939,-866.118,0.00019944,2]
[359626047,1746192643948,-4006.0,0.00019944,2]
[359626048,1746192643958,-207.4,0.00019953,2]
[359626049,1746192643967,-151.0,0.00019954,2]
[359626050,1746192643977,-151.0,0.00019954,2]
[359626051,1746192643988,-668.65185757,0.00019954,2]
[359626052,1746192643997,-500.87742497,0.00019973,2]
[359626053,1746192644007,-500.0,0.00019973,2]
[359626054,1746192644017,-500.0,0.00019973,2]
[359626055,1746192644028,-500.0,0.00019973,2]
[359626056,1746192644038,-500.0,0.00019973,2]
[359626057,1746192644047,-500.0,0.00019973,2]
[359626058,1746192644057,-217.11897616,0.0001999,2]
[359626059,1746192644066,-217.11897616,0.0001999,2]
[359626060,1746192644076,-591.71,0.00019997,2]
[359626061,1746192644085,-531.05,0.00019997,2]
[359626062,1746192644096,-450.0,0.00019997,2]
[359626063,1746192644106,-577.12,0.00019997,2]
[359626064,1746192644115,-450.0,0.00019997,2]
[359626065,1746192644125,-450.0,0.00019997,2]
[359626066,1746192644137,-450.0,0.00019997,2]
[359626067,1746192644147,-450.0,0.00019997,2]
[359626068,1746192644157,-1073.88,0.00019997,2]
[359626069,1746192644167,-450.0,0.00019997,2]
[359626070,1746192644177,-450.0,0.00019997,2]
[359626071,1746192644188,-450.0,0.00019997,2]
[359626072,1746192644198,-484.59,0.00019997,2]
[359626073,1746192644207,-450.0,0.00019997,2]
[359626074,1746192644217,-471.42,0.00019997,2]
[359626075,1746192644226,-450.0,0.00019997,2]
[359626076,1746192644236,-450.0,0.00019997,2]
[359626077,1746192644245,-450.0,0.00019997,2]
[359626078,1746192644255,-490.76,0.00019997,2]
[359626079,1746192644264,-450.0,0.00019997,2]
[359626080,1746192644273,-499.88,0.00019997,2]
[359626081,1746192644282,-508.63,0.00019997,2]
[359626082,1746192644292,-450.0,0.00019997,2]
[359626083,1746192644301,-482.36,0.00019997,2]
[359626084,1746192644311,-450.0,0.00019997,2]
[359626085,1746192644320,-450.0,0.00019997,2]
[359626086,1746192644329,-450.0,0.00019997,2]
[359626087,1746192644339,-450.0,0.00019997,2]
[359626088,1746192644349,-450.0,0.00019997,2]
[359626089,1746192644359,-529.32,0.00019997,2]
[359626090,1746192644368,-450.0,0.00019997,2]
[359626091,1746192644377,-1555.12,0.00019997,2]
[359626092,1746192644387,-450.0,0.00019997,2]
[359626093,1746192644396,-450.0,0.00019997,2]
[359626094,1746192644405,-450.0,0.00019997,2]
[359626095,1746192644416,-479.72,0.00019997,2]
[359626096,1746192644425,-450.0,0.00019997,2]
[359626097,1746192644435,-731.78,0.00019997,2]
[359626098,1746192644444,-1226.14,0.00019997,2]
[359626099,1746192644453,-481.98,0.00019997,2]
[359626100,1746192644463,-450.0,0.00019997,2]
[359626101,1746192644472,-221.30547546,0.00019997,2]
[359626102,1746192644482,-815.81,0.00019997,2]
[359626103,1746192644492,-673.3,0.00019997,2]
[359626104,1746192644501,-723.38,0.00019997,2]
[359626105,1746192644511,-450.0,0.00019997,2]
[359626106,1746192644724,-412.29410522,0.00019997,2]
[359626107,1746192644734,-555.69,0.00019997,2]
[359626108,1746192644744,-736.85,0.00019997,2]
[359626109,1746192644754,-450.0,0.00019997,2]
[359626110,1746192644764,-450.0,0.00019997,2]
[359626111,1746192644773,-450.0,0.00019997,2]
[359626112,1746192644783,-450.0,0.00019997,2]
[359626113,1746192644793,-450.0,0.00019997,2]
[359626114,1746192644802,-753.42,0.00019997,2]
[359626115,1746192644816,-450.0,0.00019997,2]
[359626116,1746192644825,-450.0,0.00019997,2]
[359626117,1746192644835,-450.0,0.00019997,2]
[359626118,1746192644844,-626.89,0.00019997,2]
[359626119,1746192644855,-450.0,0.00019997,2]
[359626120,1746192644864,-450.0,0.00019997,2]
[359626121,1746192644874,-450.0,0.00019997,2]
[359626122,1746192644884,-532.67,0.00019997,2]
[359626123,1746192644894,-545.91,0.00019997,2]
[359626124,1746192644903,-450.0,0.00019997,2]
[359626125,1746192644913,-450.0,0.00019997,2]
[359626126,1746192644923,-450.0,0.00019997,2]
[359626127,1746192644933,-450.0,0.00019997,2]
[359626128,1746192644943,-520.57,0.00019997,2]
[359626129,1746192644952,-563.72,0.00019997,2]
[359626130,1746192644962,-465.13,0.00019997,2]
[359626131,1746192644973,-932.22,0.00019997,2]
[359626132,1746192644983,-450.0,0.00019997,2]
[359626133,1746192644992,-450.0,0.00019997,2]
[359626134,1746192645002,-450.0,0.00019997,2]
[359626135,1746192645011,-450.0,0.00019997,2]
[359626136,1746192645021,-450.0,0.00019997,2]
[359626137,1746192645030,-450.0,0.00019997,2]
[359626138,1746192645040,-539.03,0.00019997,2]
[359626139,1746192645050,-450.0,0.00019997,2]
[359626140,1746192645059,-534.94,0.00019997,2]
[359626141,1746192645068,-861.29,0.00019997,2]
[359626142,1746192645078,-466.85,0.00019997,2]
[359626143,1746192645087,-1630.41,0.00019997,2]
[359626144,1746192645097,-450.0,0.00019997,2]
[359626145,1746192645106,-450.0,0.00019997,2]
[359626146,1746192645115,-2830.65,0.00019997,2]
[359626147,1746192645124,-946.4,0.00019997,2]
[359626148,1746192645134,-450.0,0.00019997,2]
[359626149,1746192645145,-450.0,0.00019997,2]
[359626150,1746192645155,-450.0,0.00019997,2]
[359626151,1746192645165,-605.85,0.00019997,2]
[359626152,1746192645175,-628.71,0.00019997,2]
[359626153,1746192645184,-450.0,0.00019997,2]
[359626154,1746192645193,-887.05,0.00019997,2]
[359626155,1746192645204,-450.0,0.00019997,2]
[359626156,1746192645213,-540.43,0.00019997,2]
[359626157,1746192645222,-689.77,0.00019997,2]
[359626158,1746192645232,-450.0,0.00019997,2]
[359626159,1746192645244,-450.0,0.00019997,2]
[359626160,1746192645254,-153692.07,0.00019997,2]
[359626161,1746192645265,-531.48,0.00019997,2]
[359626162,1746192645275,-450.0,0.00019997,2]
[359626163,1746192645284,-639.45,0.00019997,2]
[359626164,1746192645294,-819.49,0.00019997,2]
[359626165,1746192645303,-1337.02,0.00019997,2]
[359626166,1746192645313,-9123.73,0.00019997,2]
[359626167,1746192645322,-450.0,0.00019997,2]
[359626168,1746192645332,-450.0,0.00019997,2]
[359626169,1746192645344,-450.0,0.00019997,2]
[359626170,1746192645353,-450.0,0.00019997,2]
[359626171,1746192645362,-450.0,0.00019997,2]
[359626172,1746192645371,-700.33,0.00019997,2]
[359626173,1746192645381,-450.0,0.00019997,2]
[359626174,1746192645390,-450.0,0.00019997,2]
[359626175,1746192645399,-775.09,0.00019997,2]
[359626176,1746192645408,-574.96,0.00019997,2]
[359626177,1746192645418,-450.0,0.00019997,2]
[359626178,1746192645427,-468.41,0.00019998,2]
[359626179,1746192645436,-850.57,0.00019998,2]
[359626180,1746192645446,-1007.58,0.00019998,2]
[359626181,1746192645455,-3186.44,0.00019998,2]
[359626182,1746192645464,-465.0,0.00019998,2]
[359626183,1746192645473,-755.41,0.00019998,2]
[359626184,1746192645482,-4709.15,0.00019998,2]
[359626185,1746192645492,-781.11,0.00019998,2]
[359626186,1746192645501,-450.0,0.00019998,2]
[359626187,1746192645510,-1185.34,0.00019998,2]
[359626188,1746192645520,-615.8,0.00019998,2]
[359626189,1746192645529,-934.89,0.00019998,2]
[359626190,1746192645539,-2412.58,0.00019998,2]
[359626191,1746192645548,-1198.55,0.00019998,2]
[359626192,1746192645557,-469.17,0.00019998,2]
[359626193,1746192645567,-1382.27,0.00019998,2]
[359626194,1746192645577,-702.16,0.00019998,2]
[359626195,1746192645586,-6277.04,0.00019998,2]
[359626196,1746192645596,-692.06,0.00019998,2]
[359626197,1746192645606,-463.19,0.00019998,2]
[359626198,1746192645617,-6383.43,0.00019998,2]
[359626199,1746192645627,-3041.17,0.00019998,2]
[359626200,1746192645636,-450.0,0.00019998,2]
[359626201,1746192645646,-898.11,0.00019998,2]
[359626202,1746192645655,-450.0,0.00019998,2]
[359626203,1746192645665,-1151.03,0.00019998,2]
[359626204,1746192645674,-6536.57,0.00019998,2]
[359626205,1746192645684,-536.69,0.00019998,2]
[359626206,1746192645693,-124236.96,0.00019998,2]
[359626207,1746192645703,-625.11,0.00019998,2]
[359626208,1746192645712,-6802.55,0.00019998,2]
[359626209,1746192645722,-35585.84,0.00019998,2]
[359626210,1746192645731,-2382.53,0.00019998,2]
[359626211,1746192645741,-450.0,0.00019998,2]
[359626212,1746192645750,-450.0,0.00019998,2]
[359626213,1746192645760,-20195.9,0.00019998,2]
[359626214,1746192645769,-543.96,0.00019998,2]
[359626215,1746192645779,-492.66,0.00019998,2]
[359626216,1746192645788,-300.0,0.00019999,2]
[359626217,1746192645798,-500.0,0.00019999,2]
[359626218,1746192645810,-666.0,0.00019999,2]
[359626219,1746192645819,-334.77930665,0.00019999,2]
[359626220,1746192645828,-450.0,0.00019999,2]
[359626221,1746192645837,-450.0,0.00019999,2]
[359626222,1746192645848,-450.0,0.00019999,2]
[359626223,1746192645857,-450.0,0.00019999,2]
[359626224,1746192645866,-450.0,0.00019999,2]
[359626225,1746192645876,-450.0,0.00019999,2]
[359626226,1746192645887,-450.0,0.00019999,2]
[359626227,1746192645896,-450.0,0.00019999,2]
[359626228,1746192645906,-450.0,0.00019999,2]
[359626229,1746192645915,-450.0,0.00019999,2]
[359626230,1746192645925,-643.15,0.00019999,2]
[359626231,1746192645934,-450.0,0.00019999,2]
[359626232,1746192645943,-450.0,0.00019999,2]
[359626233,1746192645953,-450.0,0.00019999,2]
[359626234,1746192645963,-450.0,0.00019999,2]
[359626235,1746192645973,-3089.25,0.00019999,2]
[359626236,1746192645982,-450.0,0.00019999,2]
[359626237,1746192645992,-450.0,0.00019999,2]
[359626238,1746192646001,-300.3202691,0.00019999,2]
[359626239,1746192646010,-450.0,0.00019999,2]
[359626240,1746192646020,-441.29773002,0.00019999,2]
[359626241,1746192646030,-450.0,0.00019999,2]
[359626242,1746192646039,-507.63,0.00019999,2]
[359626243,1746192646048,-591.46,0.00019999,2]
[359626244,1746192646058,-1353.82,0.00019999,2]
[359626245,1746192646067,-450.0,0.00019999,2]
[359626246,1746192646076,-450.0,0.00019999,2]
[359626247,1746192646085,-450.0,0.00019999,2]
[359626248,1746192646098,-450.0,0.00019999,2]
[359626249,1746192646108,-1473.16,0.00019999,2]
[359626251,1746192646117,-488.5,0.00019999,2]
[359626252,1746192646126,-450.0,0.00019999,2]
[359626253,1746192646137,-450.0,0.00019999,2]
[359626254,1746192646146,-450.0,0.00019999,2]
[359626255,1746192646156,-450.0,0.00019999,2]
[359626257,1746192646166,-537.8,0.00019999,2]
[359626258,1746192646175,-450.0,0.00019999,2]
[359626260,1746192646185,-450.0,0.00019999,2]
[359626261,1746192646194,-450.0,0.00019999,2]
[359626262,1746192646203,-450.0,0.00019999,2]
[359626263,1746192646212,-3085.8,0.00019999,2]
[359626264,1746192646222,-1350.31,0.00019999,2]
[359626266,1746192646231,-450.0,0.00019999,2]
[359626267,1746192646240,-2815.03,0.00019999,2]
[359626268,1746192646250,-450.0,0.00019999,2]
[359626269,1746192646260,-450.0,0.00019999,2]
[359626270,1746192646269,-554.76,0.00019999,2]
[359626271,1746192646279,-1121.13,0.00019999,2]
[359626272,1746192646288,-940.0,0.00019999,2]
[359626273,1746192646298,-485.66,0.00019999,2]
[359626274,1746192646307,-450.0,0.00019999,2]
[359626275,1746192646317,-1113.24,0.00019999,2]
[359626276,1746192646327,-1113.24,0.00019999,2]
[359626277,1746192646336,-1113.24,0.00019999,2]
[359626278,1746192646348,-1113.24,0.00019999,2]
[359626279,1746192646358,-1113.24,0.00019999,2]
[359626280,1746192646367,-1113.24,0.00019999,2]
[359626281,1746192646377,-1113.24,0.00019999,2]
[359626282,1746192646387,-1113.24,0.00019999,2]
[359626283,1746192646396,-1113.24,0.00019999,2]
[359626284,1746192646405,-1113.24,0.00019999,2]
[359626285,1746192646415,-1113.24,0.00019999,2]
[359626286,1746192646424,-1113.24,0.00019999,2]
[359626287,1746192646434,-1113.24,0.00019999,2]
[359626288,1746192646444,-1113.24,0.00019999,2]
[359626289,1746192646453,-1113.24,0.00019999,2]
[359626290,1746192646463,-1113.24,0.00019999,2]
[359626291,1746192646473,-1113.24,0.00019999,2]
[359626292,1746192646483,-1113.24,0.00019999,2]
[359626293,1746192646493,-1113.24,0.00019999,2]
[359626294,1746192646503,-1113.24,0.00019999,2]
[359626295,1746192646512,-1113.24,0.00019999,2]
[359626296,1746192646522,-1113.24,0.00019999,2]
[359626297,1746192646532,-1113.24,0.00019999,2]
[359626298,1746192646543,-1113.41570618,0.00019999,2]
[359626299,1746192646553,-450.0,0.00019999,2]
[359626300,1746192646563,-450.0,0.00019999,2]
[359626301,1746192646574,-909.41,0.00019999,2]
[359626302,1746192646584,-493.5,0.00019999,2]
[359626303,1746192646597,-917.8,0.00019999,2]
[359626304,1746192646607,-676.14,0.00019999,2]
[359626305,1746192646617,-637.3993509,0.00019999,2]
[359626306,1746192646627,-978.0,0.00019999,2]
[359626307,1746192646636,-692.25841914,0.0002,2]
[359626308,1746192646646,-506316.98814539,0.0002,2]
[359626309,1746192646656,-3749785.42814357,0.0002,2]
[359626310,1746192646745,-822.14461619,0.0002,2]
[359626311,1746192646888,-284.19137649,0.0002,2]
[359626312,1746192647397,-464.7733283,0.00019997,2]
[359626313,1746192647409,-214.4666717,0.00019997,2]
[359626314,1746192647418,-754.10060517,0.0002,2]
[359626315,1746192648627,-723.64,0.00019775,2]
[359626316,1746192648637,-450.0,0.00019775,2]
[359626317,1746192648647,-450.0,0.00019775,2]
[359626318,1746192648657,-450.0,0.00019775,2]
[359626319,1746192648666,-450.0,0.00019775,2]
[359626320,1746192648676,-476.36,0.00019944,2]
[359626321,1746192648692,-401.64,0.00019944,2]
[359626322,1746192648701,-144602.1031183,0.0002,2]
[359626323,1746192714003,154.07,0.00019217,2]
[359626327,1746192842989,1000.0,0.00019217,2]
[359626328,1746193022955,184.04,0.00019455,2]
[359626333,1746193091539,3000.0,0.0001887,2]
[359626334,1746193091561,3000.0,0.0001887,2]
[359626335,1746193091583,3000.0,0.0001887,2]
[359626336,1746193091605,3000.0,0.0001887,2]
[359626337,1746193091627,3000.0,0.0001887,2]
[359626338,1746193091648,3000.0,0.0001887,2]
[359626339,1746193091669,3000.0,0.0001887,2]
[359626340,1746193091690,2900.0,0.0001887,2]
[359626346,1746193154917,100.0,0.0001886,2]
[359626347,1746193154939,100.0,0.0001886,2]
[359626349,1746193233924,250.0,0.00018827,7]
[359626350,1746193316042,154.43,0.00018841,2]
[359626351,1746193343369,1161.2489,0.00019574,2]
[359626353,1746193391268,500.0,0.0003287,60]
[359626354,1746193418248,588.0,0.0003287,60]
[359626355,1746193447929,1077.491075,7.945e-05,2]
[359626356,1746193519882,167.13,0.00019367,2]
[359626357,1746193593257,167.61683408,9e-07,2]
[359626361,1746193776724,172.08319092,0.00016877,2]
[359626362,1746193776747,721.29680908,0.00016877,2]
[359626363,1746193776946,893.38,0.00019141,2]
[359626372,1746193832001,-255.97559429,0.00019664,2]
[359626373,1746193832012,-794.19990571,0.00019664,2]
[359626374,1746193832022,-385.10049448,0.00019664,2]
[359626375,1746193832031,-200.0,0.00019668,2]
[359626376,1746193832041,-798.12658981,0.00019672,2]
[359626377,1746193832052,-401.87341019,0.00019672,2]
[359626378,1746193832061,-1521.7571,0.00019673,2]
[359626379,1746193832071,-281.1898968,0.00019673,2]
[359626380,1746193832081,-300.0,0.00019673,2]
[359626381,1746193832090,-422.56040695,0.00019674,2]
[359626382,1746193832102,-1198.17089305,0.00019674,2]
[359626383,1746193832112,-268.88825393,0.00019674,2]
[359626384,1746193832123,-450.0,0.00019674,2]
[359626387,1746193832162,-689.41057376,0.00019674,2]
[359626389,1746193832175,-312.18217231,0.00019674,2]
[359626391,1746193832185,-466.91782769,0.00019674,2]
[359626394,1746193832196,-700.0,0.00019674,2]
[359626397,1746193832222,-270.33973497,0.00019674,2]